bitfinex/quotes_SOLUSD_20250517
["timestamp","ask_amount","ask_price","bid_price","bid_amount"]
[1747476332993,20.85940759,167.79,167.72,18.64964886]
[1747476333693,26.0,167.76,167.68,5.96363607]
[1747476333869,26.0,167.76,167.69,18.64964886]
[1747476334070,136.9,167.78,167.69,18.64964886]
[1747476334982,5.96054121,167.77,167.71,18.64964886]
[1747476335187,142.86020526,167.78,167.71,18.64964886]
[1747476335364,136.9,167.78,167.71,18.64964886]
[1747476335566,142.86026683,167.78,167.71,18.64964886]
[1747476336488,142.86026683,167.78,167.69,5.96327448]
[1747476336681,142.86026683,167.78,167.7,18.64964886]
[1747476337190,142.86026683,167.78,167.7,5.96272578]
[1747476337366,157.76073172,167.78,167.7,18.64964886]
[1747476338383,157.76073172,167.78,167.7,24.6125418]
[1747476339689,142.86026683,167.78,167.7,24.6125418]
[1747476342173,142.86026683,167.78,167.7,18.64964886]
[1747476342580,157.76073172,167.78,167.7,24.61265933]
[1747476343983,142.86026683,167.78,167.7,24.61265933]
[1747476345589,5.96026683,167.78,167.7,24.61265933]
[1747476346895,20.86073172,167.78,167.7,18.64964886]
[1747476347076,20.86073172,167.78,167.7,24.61265214]
[1747476347274,20.86073172,167.78,167.7,18.64964886]
[1747476351500,20.86073172,167.78,167.67,134.76425603]
[1747476351685,165.72043172,167.78,167.68,18.64964886]
[1747476352488,159.33363172,167.78,167.68,18.64964886]
[1747476354004,159.33363172,167.78,167.7,18.64964886]
[1747476355601,159.33363172,167.78,167.7,24.61265033]
[1747476356384,142.86026683,167.78,167.7,24.61265033]
[1747476357395,142.86026683,167.78,167.7,18.64964886]
[1747476358212,157.76073172,167.78,167.7,18.64964886]
[1747476363717,157.76073172,167.78,167.69,18.64964886]
[1747476364089,157.76073172,167.78,167.69,5.96331602]
[1747476364296,142.86026683,167.78,167.7,18.64964886]
[1747476365902,142.86026683,167.78,167.7,5.96288583]
[1747476366490,142.86026683,167.78,167.72,18.64964886]
[1747476366802,1.5745,167.82,167.72,18.64964886]
[1747476367011,5.95841029,167.83,167.74,18.64964886]
[1747476367785,5.95795244,167.85,167.79,5.95983074]
[1747476367996,5.95795244,167.85,167.8,18.64964886]
[1747476368891,5.9573454,167.86,167.8,18.64964886]
[1747476369713,5.95621221,167.9,167.8,52.1553623]
[1747476369910,5.95621221,167.9,167.8,58.2876623]
[1747476370293,5.95521676,167.92,167.84,18.64964886]
[1747476371530,5.95486214,167.93,167.85,5.95770032]
[1747476371818,5.95486214,167.93,167.86,18.64964886]
[1747476373326,5.95486214,167.93,167.86,5.95713499]
[1747476379610,5.95486214,167.93,167.85,24.60723078]
[1747476379810,5.95486214,167.93,167.85,18.64964886]
[1747476380003,5.95486214,167.93,167.85,24.60728923]
[1747476381121,20.8420175,167.93,167.86,18.64964886]
[1747476382329,5.95486214,167.93,167.86,18.64964886]
[1747476382722,5.95486214,167.93,167.86,24.60678456]
[1747476383217,9.16876256,167.94,167.9,18.64964886]
[1747476383421,5.95308965,167.98,167.9,18.64964886]
[1747476384205,5.95308965,167.98,167.9,24.60549041]
[1747476384817,5.95308965,167.98,167.9,18.64964886]
[1747476385025,20.83581378,167.98,167.9,18.64964886]
[1747476387135,5.95308965,167.98,167.9,24.60540762]
[1747476387447,5.95308965,167.98,167.9,18.64964886]
[1747476388431,20.83581378,167.98,167.9,18.64964886]
[1747476389534,20.83581378,167.98,167.89,18.64964886]
[1747476389921,136.9,167.99,167.87,39.49911292]
[1747476389922,142.85286136,167.99,167.87,39.49911292]
[1747476390119,142.85286136,167.99,167.89,18.64964886]
[1747476390429,142.85286136,167.99,167.92,20.16474886]
[1747476390934,142.85286136,167.99,167.92,26.11972378]
[1747476391433,142.85286136,167.99,167.92,20.16474886]
[1747476391818,26.0,167.95,167.88,1.5151]
[1747476392023,26.0,167.94,167.84,7.4730575]
[1747476392227,26.0,167.94,167.84,1.5151]
[1747476392533,26.0,167.94,167.85,18.64964886]
[1747476393113,20.8420175,167.93,167.81,4.26931591]
[1747476393414,20.8420175,167.93,167.82,44.64964886]
[1747476394710,20.8420175,167.93,167.82,50.60832736]
[1747476397945,20.8420175,167.93,167.82,18.64964886]
[1747476398149,26.0,167.9,167.82,18.64964886]
[1747476398846,5.95628089,167.89,167.82,18.64964886]
[1747476399236,5.95628089,167.89,167.82,5.95872042]
[1747476399932,5.95628089,167.89,167.81,24.6086447]
[1747476401054,5.95557143,167.91,167.81,24.6086447]
[1747476401436,5.95557143,167.91,167.81,39.50644578]
[1747476401830,5.95557143,167.91,167.85,18.64964886]
[1747476402661,5.95486214,167.93,167.85,18.64964886]
[1747476403446,5.95486214,167.93,167.85,24.60732257]
[1747476406356,5.95457894,167.94,167.87,18.64964886]
[1747476406526,5.95379852,167.96,167.87,44.64964886]
[1747476407056,5.95348668,167.97,167.91,18.64964886]
[1747476407438,5.95348668,167.97,167.91,24.60494645]
[1747476409245,142.85313684,167.98,167.91,24.60494645]
[1747476409445,5.95313684,167.98,167.91,24.60494645]
[1747476411002,19.08,167.99,167.91,24.60494645]
[1747476411201,19.08,167.99,167.93,18.64964886]
[1747476412293,25.03280877,167.99,167.93,18.64964886]
[1747476414402,5.95131821,168.03,167.93,25.01944886]
[1747476416012,5.95131821,168.03,167.93,30.97429211]
[1747476423124,5.95104614,168.04,167.97,18.64964886]
[1747476424127,5.95104614,168.04,167.98,5.95308965]
[1747476424342,19.08,168.05,167.99,44.64964886]
[1747476424703,5.94954783,168.08,167.99,44.64964886]
[1747476425928,5.94954783,168.08,167.99,50.60207744]
[1747476426147,20.82341741,168.08,167.99,18.64964886]
[1747476427829,20.82341741,168.08,167.99,24.60217756]
[1747476430126,20.82341741,168.08,167.99,18.64964886]
[1747476430306,26.0,168.07,167.99,18.64964886]
[1747476431724,5.95025586,168.06,167.99,18.64964886]
[1747476432232,5.95025586,168.06,167.99,24.60237111]
[1747476433243,20.82341741,168.08,167.99,24.60237111]
[1747476433836,5.94954783,168.08,168.01,18.64964886]
[1747476434657,20.82341741,168.08,168.01,18.64964886]
[1747476434942,20.82341741,168.08,167.99,18.64964886]
[1747476435838,28.89641741,168.08,167.99,18.64964886]
[1747476436316,26.0,168.04,167.95,18.64964886]
[1747476436516,26.0,168.02,167.93,7.53348552]
[1747476437041,26.0,168.02,167.94,18.64964886]
[1747476438148,5.95202666,168.01,167.94,18.64964886]
[1747476438353,5.95202666,168.01,167.94,24.60414675]
[1747476438939,5.95202666,168.01,167.94,18.64964886]
[1747476440049,20.83209332,168.01,167.94,18.64964886]
[1747476442021,50.59222664,168.01,167.88,7.8037]
[1747476442342,26.0,167.98,167.89,18.64964886]
[1747476442549,45.06,167.98,167.89,18.64964886]
[1747476444751,20.83705422,167.97,167.89,18.64964886]
[1747476445053,5.95344406,167.97,167.89,18.64964886]
[1747476445847,5.95344406,167.97,167.89,24.60569929]
[1747476446053,170.84150905,168.0,167.89,18.64964886]
[1747476446054,20.83457348,167.99,167.89,18.64964886]
[1747476446263,26.0,167.98,167.89,18.64964886]
[1747476446638,162.9,167.98,167.89,18.64964886]
[1747476447974,20.83705422,167.97,167.89,18.64964886]
[1747476448857,5.95344406,167.97,167.89,24.6058913]
[1747476449170,5.95273528,167.99,167.89,50.6058913]
[1747476449381,5.95273528,167.99,167.89,65.49659354]
[1747476449676,5.95245464,168.0,167.93,18.64964886]
[1747476450062,20.83006442,168.03,167.93,24.60420271]
[1747476450473,5.95131821,168.03,167.95,18.64964886]
[1747476450793,5.95131821,168.03,167.95,24.81374886]
[1747476451787,5.95131821,168.03,167.95,30.76764284]
[1747476456784,5.95131821,168.03,167.95,24.81374886]
[1747476457781,5.95131821,168.03,167.95,30.76783641]
[1747476458076,5.95131821,168.03,167.95,56.76783641]
[1747476460469,5.95096405,168.04,167.95,56.76783641]
[1747476460660,5.95096405,168.04,167.95,61.03715232]
[1747476461882,5.95096405,168.04,167.95,75.92253487]
[1747476462079,5.95060993,168.05,167.95,158.02253487]
[1747476462671,181.96,168.09,167.99,18.64964886]
[1747476462872,181.96,168.09,167.99,37.70964886]
[1747476463257,5.94954783,168.08,167.99,37.70964886]
[1747476463453,5.94954783,168.08,168.01,18.64964886]
[1747476463687,5.94954783,168.08,168.01,25.10324886]
[1747476464183,5.94954783,168.08,168.02,5.95167241]
[1747476464386,5.94954783,168.08,168.01,31.05515843]
[1747476465980,161.90932524,168.09,168.01,31.05515843]
[1747476466683,5.94861779,168.11,168.01,71.93522509]
[1747476467781,5.9477785,168.13,168.01,71.93522509]
[1747476467961,5.9477785,168.13,168.01,154.03522509]
[1747476468165,5.9477785,168.13,168.07,18.64964886]
[1747476468887,25.00752646,168.14,168.07,18.64964886]
[1747476469274,5.94752646,168.14,168.07,18.64964886]
[1747476469763,5.94715001,168.15,168.09,18.64964886]
[1747476471194,5.94671741,168.16,168.09,24.59882814]
[1747476472203,5.94643268,168.17,168.09,24.59882814]
[1747476472492,136.9,168.18,168.09,24.59882814]
[1747476473892,142.84616418,168.18,168.09,24.59882814]
[1747476478494,5.94565669,168.19,168.09,24.59882814]
[1747476482999,20.80979843,168.19,168.09,24.59882814]
[1747476483208,20.80979843,168.19,168.09,18.64964886]
[1747476483582,136.9,168.18,168.09,18.64964886]
[1747476484507,136.9,168.18,168.09,24.59866618]
[1747476486500,142.84607286,168.18,168.09,24.59866618]
[1747476486701,5.94607286,168.18,168.09,24.59866618]
[1747476487717,5.94530321,168.2,168.09,24.59866618]
[1747476492519,5.94530321,168.2,168.09,39.47165089]
[1747476499835,20.80856123,168.2,168.09,24.59866618]
[1747476500539,20.80856123,168.2,168.09,18.64964886]
[1747476501046,20.80856123,168.2,168.09,24.59876461]
[1747476501618,26.0,168.18,168.09,18.64964886]
[1747476503659,5.94636379,168.17,168.09,18.64964886]
[1747476504220,5.94636379,168.17,168.09,24.59879451]
[1747476504529,5.94636379,168.17,168.09,50.59879451]
[1747476505432,5.94601022,168.18,168.09,50.59879451]
[1747476506149,5.94601022,168.18,168.11,18.64964886]
[1747476507739,5.94601022,168.18,168.11,24.59803336]
[1747476509637,1.5726,168.28,168.17,18.64964886]
[1747476509943,26.0,168.26,168.18,19.02]
[1747476511367,5.9435364,168.25,168.18,24.9657025]
[1747476512763,5.9435364,168.25,168.2,18.64964886]
[1747476513845,1.5726,168.28,168.2,5.94526546]
[1747476514070,6.6146,168.29,168.2,5.94526546]
[1747476514370,5.9425643,168.28,168.2,5.94526546]
[1747476515260,5.9425643,168.28,168.2,9.31787825]
[1747476515562,5.94177064,168.3,168.2,9.31787825]
[1747476518774,5.94177064,168.3,168.22,18.64964886]
[1747476520175,5.94177064,168.3,168.24,18.64964886]
[1747476520482,162.9,168.32,168.24,20.22804886]
[1747476520483,136.9,168.32,168.24,20.22804886]
[1747476520650,5.94071169,168.33,168.24,20.22804886]
[1747476521875,162.9,168.35,168.26,18.64964886]
[1747476521876,5.94035879,168.34,168.26,18.64964886]
[1747476522078,5.94035879,168.34,168.28,18.64964886]
[1747476522866,5.94035879,168.34,168.28,24.5920727]
[1747476525380,5.94000594,168.35,168.28,24.5920727]
[1747476526679,5.94000594,168.35,168.29,24.94210229]
[1747476528908,20.79002079,168.35,168.25,26.0]
[1747476529097,20.79002079,168.35,168.26,37.64964886]
[1747476529574,5.94000594,168.35,168.26,37.64964886]
[1747476530811,5.94000594,168.35,168.28,18.64964886]
[1747476531199,5.94000594,168.35,168.29,19.0]
[1747476531595,5.94000594,168.35,168.28,18.64964886]
[1747476531801,5.94000594,168.35,168.29,19.0]
[1747476532610,5.94000594,168.35,168.3,18.64964886]
[1747476533804,5.94000594,168.35,168.26,5.94285534]
[1747476534001,20.78922271,168.36,168.27,43.59246607]
[1747476534198,20.78922271,168.36,168.27,18.64964886]
[1747476534507,20.78922271,168.36,168.28,18.98]
[1747476537588,157.68922271,168.36,168.28,18.98]
[1747476539198,157.68922271,168.36,168.29,18.64964886]
[1747476539817,157.68922271,168.36,168.27,5.94278237]
[1747476539992,157.68922271,168.36,168.29,18.64964886]
[1747476540715,157.68922271,168.36,168.25,26.0]
[1747476541013,26.0,168.34,168.25,18.64964886]
[1747476541599,155.88,168.35,168.25,18.64964886]
[1747476542425,6.1124,168.34,168.25,18.64964886]
[1747476542720,20.79249093,168.33,168.25,18.64964886]
[1747476547631,136.9,168.32,168.25,18.64964886]
[1747476547831,20.79496167,168.31,168.24,18.64964886]
[1747476548141,20.79496167,168.31,168.21,37.62964886]
[1747476548142,26.0,168.3,168.21,37.62964886]
[1747476548825,20.79496167,168.31,168.21,37.62964886]
[1747476549528,5.94141762,168.31,168.21,37.62964886]
[1747476549909,5.94141762,168.31,168.23,18.64964886]
[1747476551511,5.94141762,168.31,168.23,5.944146]
[1747476552734,5.94141762,168.31,168.22,24.59424522]
[1747476553105,5.94141762,168.31,168.22,39.45573612]
[1747476553505,5.94141762,168.31,168.23,3.36179196]
[1747476553816,136.9,168.32,168.23,29.36179196]
[1747476554021,142.84117283,168.32,168.26,20.18484886]
[1747476554838,142.84117283,168.32,168.26,26.12781716]
[1747476555017,136.9,168.32,168.26,26.12781716]
[1747476555321,142.8410651,168.32,168.26,26.12781716]
[1747476555524,136.9,168.32,168.27,18.98]
[1747476556539,136.9,168.32,168.28,18.64964886]
[1747476556707,5.94008588,168.35,168.28,18.64964886]
[1747476556907,5.93965312,168.36,168.3,18.64964886]
[1747476558237,5.93965312,168.36,168.3,27.95569298]
[1747476558714,142.83937792,168.37,168.3,27.95569298]
[1747476559428,142.83937792,168.37,168.3,22.01392261]
[1747476561713,157.68762879,168.37,168.3,3.36427375]
[1747476562331,157.68762879,168.37,168.29,3.36427375]
[1747476562718,26.0,168.34,168.29,3.36427375]
[1747476562914,26.0,168.33,168.29,3.36427375]
[1747476563232,27.5611,168.33,168.29,3.36427375]
[1747476563441,26.0,168.3,168.29,3.36427375]
[1747476563617,31.94177064,168.3,168.29,3.36427375]
[1747476564141,31.94177064,168.3,168.24,18.98]
[1747476564813,5.94177064,168.3,168.25,18.64964886]
[1747476565640,5.94141762,168.31,168.25,18.64964886]
[1747476566660,20.79496167,168.31,168.23,18.64964886]
[1747476569149,5.94212371,168.29,168.23,18.64964886]
[1747476569749,5.94212371,168.29,168.22,29.60236545]
[1747476570044,5.94212371,168.29,168.23,18.64964886]
[1747476570243,5.94212371,168.29,168.23,22.02285049]
[1747476575934,20.79743299,168.29,168.22,23.65785049]
[1747476577156,20.79743299,168.29,168.22,5.00820163]
[1747476577543,20.79743299,168.29,168.22,1.635]
[1747476578233,20.79743299,168.29,168.22,20.28464886]
[1747476579358,20.79743299,168.29,168.22,23.65785049]
[1747476579937,5.94212371,168.29,168.23,18.64964886]
[1747476580654,142.84186813,168.3,168.23,22.02285049]
[1747476581731,157.69629474,168.3,168.23,22.02285049]
[1747476582440,157.69629474,168.3,168.22,23.65785049]
[1747476585564,5.94247682,168.28,168.22,23.65785049]
[1747476586368,20.79866888,168.28,168.22,23.65785049]
[1747476588674,5.94247682,168.28,168.23,18.64964886]
[1747476588840,5.94247682,168.28,168.23,22.02285049]
[1747476590263,5.94247682,168.28,168.22,5.00820163]
[1747476590867,5.94247682,168.28,168.22,23.65785049]
[1747476591463,5.94247682,168.28,168.22,29.60239799]
[1747476593170,5.94247682,168.28,168.23,3.37320163]
[1747476593671,142.84218668,168.29,168.24,18.64964886]
[1747476600365,142.84218668,168.29,168.23,24.5938894]
[1747476600675,142.84218668,168.29,168.24,3.37320163]
[1747476601778,136.9,168.29,168.24,22.02285049]
[1747476602282,142.84227949,168.29,168.24,22.02285049]
[1747476603382,142.84227949,168.29,168.24,27.96673744]
[1747476603559,5.94187331,168.3,168.26,18.64964886]
[1747476604278,5.94122102,168.32,168.26,18.64964886]
[1747476604859,142.84081767,168.33,168.26,24.59282849]
[1747476605268,142.84081767,168.33,168.27,3.37320163]
[1747476605468,142.84081767,168.33,168.27,22.35320163]
[1747476605874,142.84081767,168.33,168.27,28.29591622]
[1747476606489,142.84081767,168.33,168.29,18.64964886]
[1747476606690,5.94081767,168.33,168.29,18.64964886]
[1747476607087,5.94000594,168.35,168.29,18.64964886]
[1747476607587,20.79002079,168.35,168.28,3.37320163]
[1747476608387,20.79002079,168.35,168.27,22.35320163]
[1747476610894,20.79002079,168.35,168.28,18.64964886]
[1747476611069,5.94000594,168.35,168.29,5.94212371]
[1747476612796,20.5137,168.39,168.29,5.94212371]
[1747476612797,20.7832903,168.41,168.3,18.64964886]
[1747476612965,5.93788967,168.41,168.34,18.64964886]
[1747476613772,5.93788967,168.41,168.34,20.28474886]
[1747476614174,5.9375371,168.42,168.34,26.22499306]
[1747476614579,5.9375371,168.42,168.34,23.65795049]
[1747476615174,5.9375371,168.42,168.34,29.59830291]
[1747476615892,5.9375371,168.42,168.34,23.65795049]
[1747476616077,5.9375371,168.42,168.34,20.28474886]
[1747476617288,20.78137987,168.42,168.34,20.28474886]
[1747476619403,5.9375371,168.42,168.34,26.22492107]
[1747476621698,5.93718458,168.43,168.34,26.22492107]
[1747476621916,5.93718458,168.43,168.36,18.64964886]
[1747476623275,20.78014604,168.43,168.36,18.64964886]
[1747476623509,46.78014604,168.43,168.35,18.64964886]
[1747476626714,46.78014604,168.43,168.35,24.58959739]
[1747476627609,31.93718458,168.43,168.35,24.58959739]
[1747476628207,5.93718458,168.43,168.35,24.58959739]
[1747476630109,5.93647966,168.45,168.35,24.58959739]
[1747476631191,20.77767882,168.45,168.35,24.58959739]
[1747476631401,20.77767882,168.45,168.35,43.54959739]
[1747476632685,5.93647966,168.45,168.35,43.54959739]
[1747476634212,5.93647966,168.45,168.37,18.64964886]
[1747476635499,5.93647966,168.45,168.39,18.64964886]
[1747476636414,5.93647966,168.45,168.39,5.93825723]
[1747476637417,5.93647966,168.45,168.39,18.64964886]
[1747476638719,5.93647966,168.45,168.39,5.93852706]
[1747476639894,5.93647966,168.45,168.37,24.58894921]
[1747476643011,5.93647966,168.45,168.37,18.64964886]
[1747476643603,20.77767882,168.45,168.37,18.64964886]
[1747476644297,20.77767882,168.45,168.37,24.58883799]
[1747476644500,20.77767882,168.45,168.37,18.64964886]
[1747476647824,5.93647966,168.45,168.37,24.58889353]
[1747476652123,5.93647966,168.45,168.36,5.93958639]
[1747476652339,5.93647966,168.45,168.35,18.64964886]
[1747476652513,20.77767882,168.45,168.35,24.58959202]
[1747476652715,5.93647966,168.45,168.35,27.93323621]
[1747476653949,5.93647966,168.45,168.37,18.64964886]
[1747476654429,5.93647966,168.45,168.37,24.58892718]
[1747476655145,5.93647966,168.45,168.37,18.64964886]
[1747476655350,20.77767882,168.45,168.39,18.64964886]
[1747476656344,20.77767882,168.45,168.37,3.34364419]
[1747476656542,20.77767882,168.45,168.37,27.93253996]
[1747476656732,5.93647966,168.45,168.37,27.93253996]
[1747476657571,5.93647966,168.45,168.37,32.13853699]
[1747476657749,5.93647966,168.45,168.39,18.64964886]
[1747476659834,136.9,168.46,168.39,24.58820106]
[1747476660042,142.83622952,168.46,168.39,24.58820106]
[1747476660448,142.83622952,168.46,168.39,18.64964886]
[1747476660837,142.83622952,168.46,168.4,3.34364419]
[1747476661150,157.67654769,168.46,168.4,3.34364419]
[1747476662455,157.67654769,168.46,168.38,3.34364419]
[1747476662777,1.561,168.45,168.38,3.34364419]
[1747476662930,26.0,168.42,168.38,3.34364419]
[1747476664557,5.93788967,168.41,168.38,3.34364419]
[1747476664862,20.78261385,168.41,168.35,21.99329305]
[1747476665095,20.78261385,168.41,168.35,3.34364419]
[1747476667156,20.78261385,168.41,168.34,4.97874419]
[1747476667559,20.78261385,168.41,168.34,3.34364419]
[1747476668261,136.9,168.4,168.34,3.34364419]
[1747476668460,26.0,168.39,168.34,3.34364419]
[1747476668660,20.78631665,168.38,168.31,21.99329305]
[1747476669077,20.78631665,168.38,168.31,3.34364419]
[1747476669851,58.64631665,168.38,168.31,3.34364419]
[1747476670369,20.78631665,168.38,168.3,18.64964886]
[1747476671383,20.78631665,168.38,168.3,24.5914129]
[1747476671875,20.78631665,168.38,168.3,7.54964122]
[1747476672955,20.78631665,168.38,168.3,4.20599703]
[1747476674670,20.78631665,168.38,168.28,21.99329305]
[1747476675068,20.78631665,168.38,168.28,27.93575881]
[1747476675976,20.78631665,168.38,168.29,3.34364419]
[1747476676472,20.78631665,168.38,168.29,9.28567752]
[1747476681953,20.78631665,168.38,168.3,24.59131792]
[1747476682152,5.93894761,168.38,168.32,18.64964886]
[1747476683081,5.93894761,168.38,168.31,7.5801]
[1747476683082,5.93894761,168.38,168.31,1.533]
[1747476683459,5.93894761,168.38,168.3,18.64964886]
[1747476683659,5.93894761,168.38,168.28,18.64964886]
[1747476683977,20.78631665,168.38,168.28,18.64964886]
[1747476684380,20.78631665,168.38,168.28,22.00455213]
[1747476685087,46.78631665,168.38,168.28,22.00455213]
[1747476687088,76.48105474,168.38,168.28,22.00455213]
[1747476687620,136.9,168.37,168.28,22.00455213]
[1747476688587,136.9,168.37,168.28,18.64964886]
[1747476689289,20.78878593,168.36,168.28,18.64964886]
[1747476689472,162.9,168.35,168.26,18.64964886]
[1747476691389,20.79125578,168.34,168.26,18.64964886]
[1747476692509,5.94035879,168.34,168.26,24.59274799]
[1747476692669,5.93965312,168.36,168.28,24.90194886]
[1747476693079,5.93965312,168.36,168.3,18.64964886]
[1747476693595,5.93894761,168.38,168.3,24.59110727]
[1747476693976,5.93894761,168.38,168.3,43.53110727]
[1747476695400,5.93824228,168.4,168.3,43.53110727]
[1747476695699,5.93824228,168.4,168.32,18.64964886]
[1747476697702,5.93788967,168.41,168.33,5.94071169]
[1747476699489,5.93788967,168.41,168.33,9.29329083]
[1747476703205,5.93788967,168.41,168.34,18.64964886]
[1747476704583,5.93788967,168.41,168.34,22.002228]
[1747476705306,5.93788967,168.41,168.35,5.94000594]
[1747476705514,5.93766289,168.42,168.35,5.94000594]
[1747476705874,5.93766289,168.42,168.35,9.29258508]
[1747476707681,5.93766289,168.42,168.36,24.58908527]
[1747476708493,24.87726682,168.43,168.37,1.503]
[1747476709691,24.87726682,168.43,168.37,4.85988524]
[1747476710712,24.87726682,168.43,168.37,10.79914283]
[1747476711388,24.87726682,168.43,168.37,4.85988524]
[1747476711591,24.87726682,168.43,168.37,10.79914676]
[1747476712107,24.87726682,168.43,168.37,4.85988524]
[1747476713219,24.87726682,168.43,168.37,1.503]
[1747476713814,24.87726682,168.43,168.37,7.44217732]
[1747476714820,24.87726682,168.43,168.37,10.79906256]
[1747476716521,5.93726682,168.43,168.37,10.79906256]
[1747476717318,5.93726682,168.43,168.37,7.44217732]
[1747476719822,5.93726682,168.43,168.37,1.503]
[1747476720923,20.78022828,168.43,168.33,37.69527039]
[1747476721129,22.35172828,168.43,168.34,18.64964886]
[1747476722128,22.35172828,168.43,168.34,22.00374452]
[1747476723093,136.9,168.42,168.34,22.00374452]
[1747476723293,136.9,168.42,168.34,3.35409566]
[1747476723895,143.0573,168.42,168.34,3.35409566]
[1747476724097,143.0573,168.42,168.31,22.00374452]
[1747476724316,37.84,168.41,168.31,22.00374452]
[1747476725146,20.78384798,168.4,168.31,22.00374452]
[1747476726606,136.9,168.39,168.31,22.00374452]
[1747476727427,142.83884378,168.39,168.34,18.64964886]
[1747476729607,142.83884378,168.39,168.34,22.00374452]
[1747476731832,157.6853311,168.39,168.34,3.35409566]
[1747476732654,157.6853311,168.39,168.31,48.84467629]
[1747476732655,157.6853311,168.39,168.33,18.64964886]
[1747476735430,157.6853311,168.39,168.32,3.35409566]
[1747476738528,157.6853311,168.39,168.32,18.64964886]
[1747476738739,157.6853311,168.39,168.31,18.64964886]
[1747476742341,142.83884378,168.39,168.31,24.59104181]
[1747476744254,142.83884378,168.39,168.34,18.64964886]
[1747476744625,5.93824228,168.4,168.34,18.64964886]
[1747476746155,5.93824228,168.4,168.34,22.00374452]
[1747476747938,20.78384798,168.4,168.34,3.35409566]
[1747476748831,20.78384798,168.4,168.33,18.64964886]
[1747476749467,20.78384798,168.4,168.32,7.54912309]
[1747476750146,20.78384798,168.4,168.31,22.00374452]
[1747476750533,20.78384798,168.4,168.31,27.94512793]
[1747476751763,20.78384798,168.4,168.32,3.35409566]
[1747476753140,20.78384798,168.4,168.31,27.94512667]
[1747476755137,20.78384798,168.4,168.34,18.64964886]
[1747476755540,5.93824228,168.4,168.34,18.64964886]
[1747476755955,5.93824228,168.4,168.32,9.29504964]
[1747476756141,5.93824228,168.4,168.34,3.35409566]
[1747476756950,5.93788967,168.41,168.34,3.35409566]
[1747476757158,5.93788967,168.41,168.34,22.00374452]
[1747476763584,5.93788967,168.41,168.35,18.64964886]
[1747476763876,5.93788967,168.41,168.35,24.58963531]
[1747476764354,5.93788967,168.41,168.35,27.94373097]
[1747476765981,5.93788967,168.41,168.37,18.64964886]
[1747476766274,5.93708196,168.44,168.37,20.31084886]
[1747476766882,31.9366052,168.45,168.37,20.31084886]
[1747476767694,31.9366052,168.45,168.38,3.35409566]
[1747476768260,5.93624418,168.46,168.39,24.58790089]
[1747476768973,5.93624418,168.46,168.4,3.35409566]
[1747476769184,5.93624418,168.46,168.41,18.64964886]
[1747476770657,5.93624418,168.46,168.39,3.35409566]
[1747476772085,5.93624418,168.46,168.39,18.64964886]
[1747476773494,5.93624418,168.46,168.39,22.00374452]
[1747476774111,5.93624418,168.46,168.39,27.94226866]
[1747476774785,5.93624418,168.46,168.41,18.64964886]
[1747476778988,136.9,168.47,168.41,24.58738863]
[1747476779384,142.83583032,168.47,168.41,24.58738863]
[1747476780196,136.9,168.47,168.42,3.35409566]
[1747476780507,142.83580291,168.47,168.42,3.35409566]
[1747476780811,20.77151335,168.5,168.43,18.64964886]
[1747476781810,20.77151335,168.5,168.41,22.00374452]
[1747476782515,20.77151335,168.5,168.41,3.35409566]
[1747476783017,20.77151335,168.5,168.4,24.922]
[1747476783204,20.77151335,168.5,168.41,18.64964886]
[1747476784218,50.44510385,168.5,168.41,18.64964886]
[1747476784412,50.44510385,168.5,168.4,18.9]
[1747476784620,26.0,168.47,168.4,18.9]
[1747476784806,26.0,168.47,168.38,18.64964886]
[1747476785124,162.9,168.47,168.38,18.64964886]
[1747476786921,20.77644544,168.46,168.38,18.64964886]
[1747476790401,136.9,168.45,168.37,3.35727875]
[1747476790615,162.9,168.44,168.37,3.35727875]
[1747476791126,136.9,168.43,168.37,3.35727875]
[1747476791318,20.78261385,168.41,168.37,3.35727875]
[1747476791702,20.78261385,168.41,168.34,18.64964886]
[1747476791903,20.78261385,168.41,168.33,4.92637875]
[1747476792423,22.32941385,168.41,168.33,3.35727875]
[1747476792819,48.32941385,168.41,168.33,3.35727875]
[1747476793004,78.01886222,168.41,168.32,3.35727875]
[1747476794121,78.01886222,168.41,168.31,22.00692761]
[1747476794797,46.78261385,168.41,168.31,22.00692761]
[1747476795099,5.93788967,168.41,168.31,27.9482563]
[1747476795299,5.93788967,168.41,168.32,7.5911]
[1747476795928,5.93788967,168.41,168.32,10.94837875]
[1747476796496,5.93788967,168.41,168.35,18.64964886]
[1747476797326,5.93788967,168.41,168.35,22.00692761]
[1747476797633,20.78261385,168.41,168.35,22.00692761]
[1747476798429,5.93788967,168.41,168.35,22.00692761]
[1747476800521,5.93788967,168.41,168.35,27.94682792]
[1747476801531,5.93788967,168.41,168.35,22.00692761]
[1747476801916,5.93788967,168.41,168.35,27.94690771]
[1747476802231,5.93788967,168.41,168.37,18.64964886]
[1747476805842,161.73763905,168.42,168.37,18.64964886]
[1747476806016,142.83763905,168.42,168.37,18.64964886]
[1747476806539,157.68148182,168.42,168.36,3.35727875]